Cogmind - Beta 13 X1 @@@ ROGUE MODE // 2023.08.05 @ 20:49:08 Player: Exp. Geonium Core Result: Destroyed by EO-SR8(R) with Subdweller Laser Performance ------------- Evolutions (0) 0 Regions Visited (2) 400 Robots Destroyed (24) 120 Value Destroyed (637) 637 Prototype IDs (10) 200 Alien Tech Used (0) 0 Bonus (0) 0 TOTAL SCORE: 1357 Bonus ------- None Cogmind --------- Core Integrity 0/250 Matter 161/300 Energy 90/100 System Corruption 0% Temperature Cool (6) Movement Treading (160) Location -10/Subcaves Parts ------- > --- POWER (1) -------- (None) > --- PROPULSION (2) --- Light Treads Light Treads > --- UTILITY (2) ------ Large Storage Unit > --- WEAPON (2) ------- Beam Cannon Battle Cannon > --- INVENTORY (15) --- Subdweller Power Source Spiked Treads Gun Armor Subdweller Machine Gun Subdweller Machine Gun Subdweller Shrapnel Launcher Makeshift Axe Makeshift Axe Peak State ------------ > --- POWER ------------ Ion Engine > --- PROPULSION ------- Light Treads Light Treads > --- UTILITY ---------- Scrap Shield > --- WEAPON ----------- Subdweller Machine Gun Makeshift Axe > --- INVENTORY -------- Spiked Treads Gun Armor Beam Cannon Subdweller Machine Gun Subdweller Shrapnel Launcher [Rating: 14] Favorites ----------- Power Ion Engine Engine Ion Engine Power Core Light Nuclear Core Propulsion Aluminum Leg Treads Light Treads Leg Aluminum Leg Utility Scrap Shield Device Tractor Beam Storage Small Storage Unit Protection Scrap Shield Weapon Medium Laser Energy Gun Medium Laser Energy Cannon Beam Cannon Ballistic Gun Subdweller Machine Gun Ballistic Cannon Battle Cannon Launcher Subdweller Shrapnel Launcher Slashing Weapon Makeshift Axe Build | -11 -10 -10 ------- Run | Jun Mat Sub Slots Evolved . | . . . Power . | . . . Propulsion . | . . . Utility . | . . . Weapon . | . . . Parts Attached 19 | . 6 13 Power 2 | . 1 1 Engine 1 | . . 1 Core 1 | . 1 . Reactor . | . . . Propulsion 3 | . 1 2 Treads 2 | . . 2 Leg 1 | . 1 . Wheel . | . . . Hover . | . . . Flight . | . . . Utility 6 | . 3 3 Device 2 | . 1 1 Storage 2 | . 1 1 Processor . | . . . Hackware . | . . . Protection 2 | . 1 1 Artifact . | . . . Weapon 8 | . 1 7 Energy Gun 1 | . 1 . Energy Cannon 2 | . . 2 Ballistic Gun 1 | . . 1 Ballistic Cannon 1 | . . 1 Launcher 2 | . . 2 Special Weapon . | . . . Impact Weapon . | . . . Slashing Weapon 1 | . . 1 Piercing Weapon . | . . . Special Melee Weapon . | . . . Unidentified Prototypes . | . . . Parts Lost 7 | . 3 4 Power 3 | . 1 2 Propulsion 2 | . 1 1 Utility 1 | . . 1 Weapon 1 | . 1 . Highest Loss Streak 3 | . 3 3 To Critical Strikes . | . . . Average Slot Usage (%) 87 | . 89 85 Engine 7 | . 3 11 Core 5 | . 9 1 Treads 12 | . . 24 Leg 13 | . 24 3 Storage 8 | . 14 3 Protection 10 | . 8 12 Energy Gun 15 | . 27 4 Energy Cannon 5 | . . 10 Ballistic Gun 2 | . . 3 Launcher 3 | . . 7 Naked Turns . | . . . Heaviest Build 34 | 14 31 34 Greatest Support 40 | 20 20 40 Greatest Overweight (x) 1 | . 1 1 Average Overweight (x) . | . . . Largest Inventory Capacity 15 | . 15 15 Average Capacity 8 | . 10 7 Most Carried 9 | . 8 9 Average Carried 6 | . 7 5 Final Capacity 15 | 8 15 15 Final Carried 8 | 6 8 8 Class Distribution -------------------- 100% | Mutant Dominant Class ---------------- Mutant | -10/Materials Mutant | -10/Subcaves Resources | -11 -10 -10 ----------- Run | Jun Mat Sub Matter Collected 384 | 200 35 149 Remotely 20 | . 20 . Salvage Created 791 | . 675 116 Parts 46 | . 39 7 Haulers Intercepted 1 | . 1 . Recyclers Shooed 2 | . 2 . Parts Field Recycled . | . . . Retrieved Matter . | . . . Parts Self-Destructed 3 | . . 3 Prevented . | . . . Kills | -11 -10 -10 ------- Run | Jun Mat Sub Combat Hostiles Destroyed 19 | . 12 7 Guns 14 | . 12 2 AOE 5 | . . 5 Classes Destroyed 8 | . 6 2 Worker 1 | . 1 . Builder 1 | . 1 . Hauler 1 | . 1 . Recycler 1 | . 1 . Operator 1 | . 1 . Swarmer 4 | . . 4 Grunt 12 | . 12 . Subdweller 3 | . . 3 Best Kill Streak 4 | . 3 4 Combat Bots Only 4 | . 2 4 Max Kills in Single Turn 4 | . 1 4 Gunslinging . | . . . Exploded 4 | . . 4 Melee . | . . . Uniques/NPCs Destroyed . | . . . Combat | -11 -10 -10 -------- Run | Jun Mat Sub Damage Taken 1281 | . 434 847 Core 266 | . 122 144 Absorbed by Shields . | . . . Core Remaining (%) 100 | 100 . . Volleys Fired 79 | . 53 26 Largest 2 | . 2 2 Hottest 100 | . 90 100 Shots Fired 139 | . 98 41 Gun 123 | . 98 25 Cannon 9 | . . 9 Launcher 7 | . . 7 Special . | . . . Kinetic 17 | . . 17 Thermal 91 | . 67 24 Explosive . | . . . Electromagnetic 31 | . 31 . Robot Hit Streak 15 | . 14 15 Robot Miss Streak 3 | . 3 2 Penetration Max . | . . . Secondary Targets 1 | . 1 . Max Gunslinging Chain 1 | . 1 . Shots Hit Robots 90 | . 64 26 Core Hits 46 | . 35 11 Critical Kills . | . . . Critical Parts Destroyed . | . . . Critical Strikes 3 | . 1 2 Burn 3 | . 1 2 Melee Attacks 2 | . . 2 Impact . | . . . Slashing 2 | . . 2 Piercing . | . . . Sneak Attacks . | . . . Combat Hostiles . | . . . Follow-up Attacks . | . . . Damage Inflicted 1788 | . 904 884 Guns 1124 | . 817 307 Cannons 69 | . . 69 Explosions 537 | . 62 475 Melee 33 | . . 33 Ramming 25 | . 25 . Kinetic 669 | . . 669 Thermal 807 | . 625 182 Explosive . | . . . Electromagnetic 254 | . 254 . Impact . | . . . Slashing 33 | . . 33 Piercing . | . . . Highest Corruption . | . . . Average Corruption . | . . . Corruption Purged . | . . . Corruption Blocked . | . . . Overload Shots . | . . . Overflow Damage 9 | . 1 8 Projectiles . | . . . Explosions 8 | . . 8 Melee 1 | . 1 . Knockbacks . | . . . Impact . | . . . Kinetic . | . . . Secondary . | . . . Self-Inflicted Damage 107 | . . 107 Shots 2 | . . 2 Rammed . | . . . Targets Rammed 6 | . 6 . Kicked 6 | . 6 . Crushed . | . . . Highest Temperature 244 | . 180 244 Average Temperature 69 | . 65 149 Received Heat Transfer 673 | . 249 424 Siege Activations . | . . . Robots Corrupted . | . . . Combat Hostiles . | . . . Parts Fried 2 | . 2 . Impact Corruptions 1 | . 1 . Robots Melted . | . . . Combat Hostiles . | . . . Parts Melted 7 | . 6 1 Heat Transferred 2412 | . 1806 606 Parts Sabotaged . | . . . Parts Stolen . | . . . Parts Stripped . | . . . Power Chain Reactions 1 | . 1 . Missiles Intercepted . | . . . Alert | -11 -10 -10 ------- Run | Jun Mat Sub Peak Influence 319 | . 319 . Initial . | . . . Average 95 | . 95 . Maximum Alert Level 1 | . 1 . Low Security (%) 87 | . 87 . Level 1 12 | . 12 . Level 2 . | . . . Level 3 . | . . . Level 4 . | . . . Level 5 . | . . . High Security . | . . . Max Security . | . . . Squads Dispatched 4 | . 4 . Investigation 2 | . 2 . Extermination . | . . . Reinforcement 2 | . 2 . Assault . | . . . Garrison . | . . . Intercept . | . . . Searches Triggered . | . . . Construction Impeded . | . . . Haulers Reinforced . | . . . Active Scanning Responses . | . . . Cargo Convoy Interrupts . | . . . Stealth | -11 -10 -10 --------- Run | Jun Mat Sub Distress Signals 1 | . 1 . Communications Jammed . | . . . Distress Signals . | . . . Times Spotted 41 | . 24 17 Peak Tracking Total 4 | . 4 4 Tactical Retreats 2 | . . 2 Traps | -11 -10 -10 ------- Run | Jun Mat Sub Traps Triggered 3 | . 1 2 Indirectly . | . . . Trap Hack Attempts . | . . . Triggered . | . . . Disarmed . | . . . Reprogrammed . | . . . Reused . | . . . Traps Extracted . | . . . Installed . | . . . Triggered . | . . . Machines | -11 -10 -10 ---------- Run | Jun Mat Sub Machines Disabled 4 | . . 4 Max in Single Turn 3 | . . 3 Machines Repaired . | . . . Machines Sabotaged . | . . . Overloaded Fab Kills . | . . . Hacking | -11 -10 -10 --------- Run | Jun Mat Sub Machines Accessed 3 | . 1 2 Terminals 1 | . 1 . Fabricators . | . . . Repair Stations . | . . . Recycling Units . | . . . Scanalyzers . | . . . Garrison Access . | . . . Total Hacks 12 | . 2 10 Successful 10 | . . 10 Failed 2 | . 2 . Catastrophic . | . . . Database Lockouts . | . . . Manual 2 | . 2 . Terminals 2 | . 2 . Fabricators . | . . . Repair Stations . | . . . Recycling Units . | . . . Scanalyzers . | . . . Garrison Access . | . . . Terminal Hacks 10 | . . 10 Record 9 | . . 9 Derelict Proto ID Bank 1 | . . 1 Fabricator Hacks . | . . . Repair Station Hacks . | . . . Recycling Unit Hacks . | . . . Scanalyzer . | . . . Garrison Access Hacks . | . . . Unauthorized Hacks . | . . . Terminals . | . . . Fabricators . | . . . Repair Stations . | . . . Recycling Units . | . . . Scanalyzers . | . . . Garrison Access . | . . . Data Cores Recovered . | . . . Used . | . . . Hacking Detections 1 | . 1 . Full Trace Events 1 | . 1 . Feedback Events . | . . . Feedback Blocked . | . . . Robot Schematics Acquired . | . . . Robots Built . | . . . Authchips . | . . . Time . | . . . Total Robot Build Rating . | . . . Part Schematics Acquired . | . . . Parts Built . | . . . Authchips . | . . . Time . | . . . Total Part Build Rating . | . . . Parts Repaired . | . . . Time . | . . . Parts Recycled . | . . . Recycled Matter . | . . . Retrieved Matter . | . . . Retrieved Components . | . . . Parts Scanalyzed . | . . . Part Schematics Acquired . | . . . Parts Damaged . | . . . Bothacking | -11 -10 -10 ------------ Run | Jun Mat Sub Used RIF Installer . | . . . Robots Hacked . | . . . Non-combat . | . . . Combat . | . . . Robot Hacks Applied . | . . . Relay Couplers Released . | . . . Fabnet Peak Effective % . | . . . Robots Rewired . | . . . Allies Hacked . | . . . Hacks Repelled . | . . . Allies | -11 -10 -10 -------- Run | Jun Mat Sub Total Allies . | . . . Largest Group . | . . . Highest-Rated Group . | . . . Highest-Rated Ally . | . . . Total Orders . | . . . Ally Attacks . | . . . Total Damage . | . . . Kills . | . . . Allies Corrupted . | . . . Allies Melted . | . . . Intel | -11 -10 -10 ------- Run | Jun Mat Sub Robot Analysis Total . | . . . Derelict Logs Recovered . | . . . Drone Launches . | . . . Drone Recoveries . | . . . Exploration | -11 -10 -10 ------------- Run | Jun Mat Sub Turns Passed 2537 | . 1228 1309 Spaces Moved 1370 | 1 638 731 Core . | . . . Treads 665 | . . 665 Legs 705 | 1 638 66 Wheels . | . . . Hover . | . . . Flight . | . . . Fastest Speed 120 | 120 120 160 Average Speed 155 | 120 146 162 Slowest Speed 190 | 120 190 190 Overloaded Moves . | . . . Propulsion Burnouts . | . . . Robots Hopped . | . . . Cave-ins Triggered . | . . . Exploration Rate (%) 49 | 1 96 51 Regions Visited 2 Branch Regions 1 Pre-discovered Areas . | . . . Known Exits Taken . | . . . Unknown Exits Taken 2 | 1 1 . Scrap Searched 9 | . . 9 Spaces Dug . | . . . Terrain Destroyed 80 | . 3 77 Melee . | . . . Projectile . | . . . AOE 80 | . 3 77 Terrain Rammed . | . . . Walls Destroyed . | . . . Machines Disabled . | . . . Actions | -11 -10 -10 --------- Run | Jun Mat Sub Total 1641 | . 833 808 Wait 140 | . 125 15 Move 1368 | . 637 731 Hop . | . . . Pick Up 13 | . 4 9 Fast Attach 6 | . 3 3 Attach 6 | . 2 4 Detach . | . . . Swap 7 | . 1 6 Drop 12 | . 2 10 Fire 79 | . 53 26 Melee 2 | . . 2 Ram . | . . . Kick 6 | . 6 . Crush . | . . . Escape Stasis . | . . . Rewire . | . . . Trap . | . . . Miscellaneous 2 | . . 2 Route ------- -11/Junkyard -10/Materials (discovered 6 exits: [*Mat x3] / [*Min x2] / *Sub) -10/Subcaves (discovered 1 exit: [*Rec]) History --------- Turn | Location | Event 1 | -11/Junkyard | Discovered new exit (range 0) 1 | -11/Junkyard | Entered Materials 103 | -10/Materials | Discovered new exit (range 3) 220 | -10/Materials | Discovered new exit (range 13) 256 | -10/Materials | Discovered new exit (range 6) 305 | -10/Materials | Build established: Mutant 314 | -10/Materials | Lost 3 parts (1p1n1w) 652 | -10/Materials | Discovered new exit (range 6) 703 | -10/Materials | Discovered new exit (range 9) 1214 | -10/Materials | Discovered new exit (range 3) 1229 | -10/Materials | Entered Subcaves 1246 | -10/Subcaves | Shifting Twisted Machinery released Sub. Shrapnel Launcher 1268 | -10/Subcaves | Core integrity fell below 50% 1407 | -10/Subcaves | Lost 3 parts (1p1n1u) 1508 | -10/Subcaves | Visited Clippyterm 1513 | -10/Subcaves | Learned 40 Factory zone layouts 1827 | -10/Subcaves | Core integrity fell below 20% 1975 | -10/Subcaves | Shifting Twisted Machinery released Scrap Shield 2084 | -10/Subcaves | Visited 4L-MR0's lab 2118 | -10/Subcaves | Found Gun Armor 2483 | -10/Subcaves | Discovered new exit (range 14) 2538 | -10/Subcaves | Destroyed by EO-SR8(R) with Subdweller Laser Last Messages --------------- 02097_ 4L-MR0 mumbles to no one in particular: "Damn Subs sneaking around stealing my stuff." 02101_ Testing Chamber breached. 02102_ 4L-MR0 mumbles: "I'm surprised some of them are even willing to come in here given their fear of my usual visitors." 02116_ Dropped Structural Scanner. 02118_ Acquired Gun Armor. 02238_ Destroyed Scrap Shield. 02244_ UA-ED7(R) destroyed. 02391_ Dropped Scrap Shield. 02392_ Acquired Lrg. Storage Unit. 02393_ Acquired 5 matter. 02401_ Acquired Mak. Axe. 02431_ Acquired Battle Cannon. 02435_ Acquired Sub. Power Source. 02436_ Acquired 14 matter. 02483_ EXIT=FOUND 02489_ Ion Engine destroyed. 02493_ Machine disabled. 02497_ EO-SR8(R): "ARGHSUB!" Map ----- +----------------------------------------------------+ | ?????????##??????????# ###???????????????### #### | | ???????### ?????????### # ######??????????### ## | | ??????## ???####### " " #?????????## # | | ???#### ??## ## |= ! #???????### | | ??## ### ### [= ##???#### | | ?## #?# ## ##?## | | ## ##?# ## = ### | | #?# #### ## ## ## | | # #??# #??# #### ## ### ## | | # #??# #??## #??# ### ##### ### | | #??## #?### #??# #?# # # ## | | ###?## ### #### ### ## | | ##??## ### ## # # # | | ##### ##### ## ### ### | | #?## #####?#####?# | | ### #???????????## | | #????????????###### | | #### #?###?????????????### | | ###?## ## #????????????????# | | ##??## R #?????????????????? | | ????# ### ##?????????????????? | | #???# ##?## ##??????????????????? | | ##??# ### ##??## #???????????????????? | | #####?#" "#???### ##???????????????????? | | #### "#?????# #????????????????????? | | ## "#?????###@ #????????????????????? | | "##???????# #????????????????????? | | # ""###??????### #????????????????????? | | # [ # ???????###????????????????????? | | ## =%* " ????????????????????????????? | | ?# %! ""?????????????????????????? | | ?# ## *